bitfinex/quotes_ETHUSD_20240811
["timestamp","ask_amount","ask_price","bid_price","bid_amount"]
[1723364512286,0.982,2686.5,2686.3,2.60579]
[1723364512597,2.60468,2687.5,2685.7,2.60637]
[1723364512598,7.10858,2687.8,2686.8,2.60525]
[1723364512797,9.713,2687.8,2687.0,7.04509]
[1723364513007,0.982,2687.1,2687.0,7.04509]
[1723364513160,0.982,2687.1,2686.8,2.60528]
[1723364513361,0.982,2686.9,2686.6,2.60546]
[1723364513561,4.5042,2687.3,2686.6,2.60546]
[1723364513562,0.982,2686.7,2686.6,2.60546]
[1723364514372,0.982,2686.7,2686.5,2.60561]
[1723364514597,0.982,2686.7,2686.6,2.60552]
[1723364516182,0.982,2686.7,2686.4,3.0]
[1723364516413,0.982,2686.5,2686.4,2.60571]
[1723364517492,0.982,2686.5,2686.3,2.60574]
[1723364517712,0.982,2686.5,2686.3,2.60573]
[1723364518010,0.982,2686.5,2686.4,2.60571]
[1723364520174,0.982,2686.5,2686.3,2.60579]
[1723364521524,0.982,2686.5,2686.3,2.60575]
[1723364521888,0.982,2686.5,2686.4,19.92]
[1723364526040,0.982,2686.5,2686.4,22.52571]
[1723364531648,0.982,2686.5,2686.2,2.60583]
[1723364531944,4.5042,2686.9,2686.2,2.60583]
[1723364532107,0.982,2686.5,2686.2,2.60583]
[1723364533255,0.982,2686.5,2686.4,2.60568]
[1723364537201,0.982,2686.5,2686.3,19.92]
[1723364538056,0.982,2686.5,2686.3,22.52577]
[1723364538259,5.6975,2686.5,2686.4,19.92]
[1723364538585,6.26725,2686.5,2686.4,19.92]
[1723364542779,6.26725,2686.5,2686.0,19.92]
[1723364542984,0.982,2686.1,2686.0,22.5261]
[1723364544439,0.982,2686.1,2686.0,27.122]
[1723364544649,0.982,2686.1,2686.0,22.5261]
[1723364550767,0.982,2686.1,2686.0,25.1322]
[1723364551094,0.982,2686.1,2686.0,22.5261]
[1723364555995,5.7177,2686.1,2686.0,22.5261]
[1723364556699,0.982,2686.1,2686.0,22.5261]
[1723364556874,0.982,2686.1,2686.0,19.92]
[1723364558598,0.982,2686.1,2685.9,2.60619]
[1723364558599,0.982,2686.1,2685.9,19.92]
[1723364563634,0.982,2686.1,2685.7,22.52638]
[1723364563936,0.982,2685.9,2685.7,22.52638]
[1723364564232,4.6445,2685.8,2685.7,19.92]
[1723364567347,0.982,2685.9,2685.7,19.92]
[1723364569550,0.982,2685.9,2685.6,0.00534486]
[1723364569762,0.982,2685.7,2685.6,0.00534486]
[1723364572550,5.6265,2685.7,2685.6,0.00534486]
[1723364575017,0.982,2685.7,2685.6,0.00534486]
[1723364583226,5.728384,2685.9,2685.6,0.00534486]
[1723364583462,0.982,2685.7,2685.6,0.00534486]
[1723364595472,2.60616,2686.0,2685.6,4.58444486]
[1723364595680,0.982,2685.7,2685.6,4.58444486]
[1723364596947,0.982,2685.7,2685.6,0.00534486]
[1723364598313,7.32977,2686.0,2685.6,0.00534486]
[1723364598474,0.982,2685.7,2685.6,0.00534486]
[1723364604271,11.678606,2685.7,2685.6,0.00534486]
[1723364604495,11.678606,2685.7,2684.5,2.33287504]
[1723364604496,2.60705,2685.1,2684.6,24.5726]
[1723364604704,2.60705,2685.1,2684.4,19.78]
[1723364604705,0.982,2684.7,2684.4,31.9226]
[1723364605018,0.982,2684.7,2684.4,34.5302]
[1723364605368,0.982,2684.7,2684.5,2.60756]
[1723364605569,0.982,2684.8,2684.7,2.60736]
[1723364605801,0.982,2684.8,2684.7,7.25996]
[1723364606008,2.60661,2685.5,2684.9,7.25977]
[1723364606169,0.982,2685.0,2684.8,4.6526]
[1723364606376,0.982,2684.9,2684.8,4.72708222]
[1723364606601,0.982,2684.9,2684.8,7.33435222]
[1723364607115,2.60602,2686.1,2684.8,7.33435222]
[1723364607116,0.982,2685.1,2685.0,7.25967]
[1723364608330,0.982,2685.1,2685.0,27.17967]
[1723364608484,2.60645,2685.7,2685.0,27.17967]
[1723364608682,6.201256,2685.7,2685.0,27.17967]
[1723364608909,0.982,2685.1,2685.0,27.17967]
[1723364610312,0.982,2685.1,2685.0,19.92]
[1723364614020,0.982,2685.1,2684.8,22.52726]
[1723364614220,0.982,2684.9,2684.8,22.52726]
[1723364619353,0.982,2684.9,2684.8,19.92]
[1723364619923,0.982,2684.9,2684.6,22.52744]
[1723364620245,0.982,2684.7,2684.6,22.52744]
[1723364621723,0.982,2684.7,2684.6,19.92]
[1723364624402,0.982,2684.7,2684.6,22.52746]
[1723364625973,0.982,2684.7,2684.6,2.60746]
[1723364626696,0.982,2684.7,2684.5,2.60748]
[1723364627052,0.982,2684.7,2684.5,5.21498]
[1723364627390,0.982,2684.7,2684.5,2.60748]
[1723364630375,0.982,2684.7,2684.6,2.60746]
[1723364632394,0.982,2684.7,2684.4,22.52759]
[1723364632968,0.982,2684.7,2684.4,25.13517]
[1723364633167,0.982,2684.7,2684.4,22.52758]
[1723364633370,0.982,2684.7,2684.5,2.60755]
[1723364634660,5.5546,2684.7,2684.4,22.52758]
[1723364635300,5.5546,2684.7,2684.5,2.60749]
[1723364636003,0.982,2684.7,2684.5,2.60749]
[1723364639551,0.982,2684.7,2684.6,2.60746]
[1723364641312,0.982,2684.7,2684.5,2.6075]
[1723364646464,0.982,2684.7,2684.5,2.60749]
[1723364646920,0.982,2684.7,2684.5,5.21499]
[1723364647121,0.982,2684.7,2684.5,2.60749]
[1723364665183,4.6703,2685.5,2684.9,2.60712]
[1723364665406,4.6703,2685.5,2685.0,2.60707]
[1723364665407,0.982,2685.1,2685.0,2.60707]
[1723364666188,0.982,2685.1,2684.8,2.60718]
[1723364666485,0.982,2685.1,2684.9,2.60717]
[1723364667180,0.982,2685.1,2684.4,2.60759]
[1723364667181,7.27745,2685.0,2684.4,2.60759]
[1723364667353,7.27745,2685.0,2683.9,11.771]
[1723364667354,0.982,2684.5,2683.9,11.771]
[1723364667553,0.982,2684.5,2684.4,2.60765]
[1723364670380,0.982,2684.7,2684.4,2.60765]
[1723364670569,0.982,2684.7,2684.5,2.60754]
[1723364674731,0.982,2684.7,2684.6,2.60746]
[1723364675023,0.982,2684.7,2684.6,5.21492]
[1723364675174,2.60672,2685.4,2684.6,5.21492]
[1723364675175,0.982,2684.9,2684.8,5.21444]
[1723364678941,0.982,2684.9,2684.8,2.60717]
[1723364683439,0.982,2684.9,2684.7,22.52728]
[1723364683641,0.982,2684.9,2684.8,2.60727]
[1723364685263,0.982,2684.9,2684.7,22.52728]
[1723364685748,0.982,2684.9,2684.8,2.60727]
[1723364688158,0.982,2684.9,2684.7,22.52728]
[1723364688350,0.982,2684.9,2684.7,2.60728]
[1723364688674,4.7242,2685.1,2684.8,2.60721]
[1723364688838,0.982,2684.9,2684.8,2.60721]
[1723364689936,0.982,2684.9,2684.7,2.60728]
[1723364690229,0.982,2684.9,2684.6,22.52744]
[1723364690569,0.982,2684.7,2684.6,22.52744]
[1723364690740,0.982,2684.7,2684.6,22.52746]
[1723364691656,0.982,2684.7,2684.6,19.92]
[1723364694344,0.982,2684.7,2684.5,2.60749]
[1723364697881,0.982,2684.7,2684.6,2.60746]
[1723364700546,0.982,2684.7,2684.4,22.52759]
[1723364701277,0.982,2684.7,2684.5,2.60753]
[1723364702539,0.982,2684.7,2684.5,5.21502]
[1723364703380,0.982,2684.7,2684.5,2.60749]
[1723364706253,0.982,2684.7,2684.5,5.21499]
[1723364706452,0.982,2684.7,2684.6,2.60746]
[1723364708283,0.982,2684.7,2684.6,5.28941324]
[1723364709152,0.982,2684.9,2684.8,2.60727]
[1723364710188,4.61,2685.8,2685.4,2.60661]
[1723364710385,0.982,2685.5,2685.0,7.35]
[1723364710688,0.982,2685.1,2685.0,9.95707]
[1723364710860,0.982,2685.1,2685.0,2.60707]
[1723364712650,0.982,2685.1,2685.0,5.21414]
[1723364715189,0.982,2685.1,2685.0,25.13414]
[1723364716955,0.982,2685.1,2685.0,22.52707]
[1723364719182,0.982,2685.1,2685.0,25.13414]
[1723364721302,0.982,2685.1,2685.0,5.21414]
[1723364722496,0.982,2685.1,2685.0,2.60707]
[1723364725787,0.982,2685.1,2685.0,5.21414]
[1723364727301,0.982,2685.1,2685.0,2.60707]
[1723364728066,0.982,2685.1,2685.0,5.21414]
[1723364729865,0.982,2685.1,2685.0,2.60707]
[1723364735007,0.982,2685.1,2685.0,5.21414]
[1723364735623,0.982,2685.1,2685.0,2.60707]
[1723364736608,0.982,2685.1,2685.0,5.21414]
[1723364736812,0.982,2685.1,2685.0,2.60707]
[1723364737117,0.982,2685.1,2685.0,5.21414]
[1723364737280,0.982,2685.1,2685.0,2.60707]
[1723364737487,5.7221,2685.1,2685.0,2.60707]
[1723364737875,0.982,2685.1,2685.0,2.60707]
[1723364743215,0.982,2685.1,2684.9,2.60715]
[1723364743433,0.982,2685.1,2684.8,2.60726]
[1723364743434,4.6933,2685.0,2684.8,2.60726]
[1723364743584,0.982,2684.8,2684.7,22.5273]
[1723364744916,0.982,2684.8,2684.7,2.6073]
[1723364749062,0.982,2685.0,2684.8,2.60722]
[1723364749208,0.982,2685.0,2684.9,2.60717]
[1723364750419,5.5829,2685.0,2684.9,2.60717]
[1723364751580,0.982,2685.0,2684.9,2.60717]
[1723364752650,4.6009,2685.4,2685.1,2.60689]
[1723364752870,0.982,2685.2,2685.1,2.60689]
[1723364756744,0.982,2685.2,2685.0,2.60706]
[1723364756937,4.6009,2685.1,2684.9,19.92]
[1723364757265,0.982,2685.0,2684.9,19.92]
[1723364762263,5.3002,2685.0,2684.9,19.92]
[1723364762764,5.3002,2685.0,2684.6,2.60739]
[1723364762968,0.982,2684.8,2684.6,2.60739]
[1723364763552,0.982,2684.8,2684.7,2.60736]
[1723364763771,0.982,2684.8,2684.6,2.60739]
[1723364763950,0.982,2684.8,2684.7,2.60736]
[1723364764163,0.982,2684.8,2684.6,2.60739]
[1723364764164,0.982,2685.0,2684.8,7.38691]
[1723364764353,0.982,2685.0,2684.9,2.60708]
[1723364766371,0.982,2685.0,2684.8,2.60725]
[1723364769543,0.982,2685.0,2684.8,2.6072]
[1723364770378,0.982,2685.0,2684.9,2.60717]
[1723364770579,0.982,2685.0,2684.8,2.6072]
[1723364771148,0.982,2685.0,2684.8,5.21441]
[1723364771968,0.982,2685.0,2684.9,2.60717]
[1723364784301,4.5686,2685.2,2685.0,2.60704]
[1723364784614,4.5686,2685.2,2684.8,2.60725]
[1723364784615,0.982,2685.2,2684.8,2.60725]
[1723364784754,0.982,2685.2,2684.6,24.6997]
[1723364784755,0.982,2684.9,2684.7,2.60731]
[1723364789308,0.982,2684.9,2684.8,2.60727]
[1723364791777,0.982,2684.9,2684.6,5.2148]
[1723364791978,0.982,2684.9,2684.7,2.60735]
[1723364792488,0.982,2684.9,2684.6,25.13477]
[1723364792696,0.982,2684.9,2684.6,22.52738]
[1723364793676,0.982,2684.9,2684.6,25.13477]
[1723364796484,0.982,2684.9,2684.6,22.52738]
[1723364797012,0.982,2684.7,2684.6,22.52738]
[1723364798425,0.982,2684.7,2684.6,2.60738]
[1723364804731,0.982,2684.7,2684.4,2.60764]
[1723364804732,0.982,2684.7,2684.4,5.21522]
[1723364804970,0.982,2684.7,2684.4,2.60758]
[1723364806038,0.982,2684.7,2684.4,5.21517]
[1723364806261,0.982,2684.7,2684.5,2.60755]
[1723364810154,5.6505,2684.7,2684.3,2.60769]
[1723364810750,5.6505,2684.7,2684.3,5.21537]
[1723364811487,5.6505,2684.7,2684.4,2.60763]
[1723364812389,5.6505,2684.7,2684.3,2.60768]
[1723364817670,5.6505,2684.7,2684.4,2.60763]
[1723364818101,5.6505,2684.7,2684.3,2.60768]
[1723364818295,5.6505,2684.7,2684.3,5.21536]
[1723364818996,0.982,2684.5,2684.3,2.60768]
[1723364820464,0.982,2684.5,2684.3,5.21536]
[1723364820865,0.982,2684.5,2684.4,2.60765]
[1723364823600,4.6685,2684.7,2684.4,2.60765]
[1723364823802,0.982,2684.6,2684.4,2.60765]
[1723364829220,4.6778,2685.3,2684.6,2.60739]
[1723364829426,0.982,2684.9,2684.6,2.60739]
[1723364829596,0.982,2684.9,2684.8,2.60724]
[1723364829807,4.6778,2685.3,2685.0,2.60698]
[1723364830132,0.982,2685.1,2685.0,2.60698]
[1723364833519,0.982,2685.1,2684.9,2.60716]
[1723364834848,0.982,2685.1,2684.8,2.6072]
[1723364835043,0.982,2684.9,2684.8,2.6072]
[1723364835435,0.982,2684.9,2684.7,2.60729]
[1723364836353,0.982,2684.9,2684.8,2.60727]
[1723364836921,0.982,2684.9,2684.7,2.60729]
[1723364837241,0.982,2684.9,2684.5,2.60748]
[1723364837445,0.982,2684.7,2684.6,2.6074]
[1723364838704,0.982,2684.7,2684.6,2.60746]
[1723364840238,0.982,2684.7,2684.4,2.60758]
[1723364842051,0.982,2684.7,2684.5,2.60753]
[1723364843012,0.982,2684.7,2684.4,2.60758]
[1723364843212,0.982,2684.7,2684.4,5.21517]
[1723364843807,0.982,2684.7,2684.4,2.60758]
[1723364844421,0.982,2684.7,2684.4,5.21516]
[1723364844626,0.982,2684.7,2684.4,5.21517]
[1723364845241,0.982,2684.7,2684.4,2.60758]
[1723364845654,0.982,2684.7,2684.4,5.21517]
[1723364846325,0.982,2684.7,2684.4,2.60758]
[1723364847556,0.982,2684.7,2684.2,5.21561]
[1723364847724,0.982,2684.7,2684.3,2.60772]
[1723364851269,0.982,2684.5,2684.3,2.60772]
[1723364853776,0.982,2684.5,2684.3,2.6077]
[1723364866142,0.982,2684.8,2684.6,2.6074]
[1723364866294,0.982,2684.8,2684.6,7.3313]
[1723364866800,0.982,2684.8,2684.7,2.60736]
[1723364867206,0.982,2685.0,2684.7,2.6073]
[1723364867434,0.982,2684.8,2684.7,2.6073]
[1723364867955,0.982,2684.8,2684.6,4.7239]
[1723364868252,4.3197,2684.7,2684.3,2.60771]
[1723364868553,0.982,2684.6,2684.1,9.95788]
[1723364868844,0.982,2684.6,2684.1,12.56576]
[1723364869046,0.982,2684.6,2684.3,2.60772]
[1723364869359,4.3197,2684.9,2684.4,2.60765]
[1723364869649,0.982,2684.7,2684.3,7.33158]
[1723364871047,0.982,2684.7,2684.5,2.60754]
[1723364871251,0.982,2684.7,2684.6,2.60746]
[1723364871929,0.982,2684.7,2684.4,2.60757]
[1723364872531,0.982,2684.7,2684.5,2.60752]
[1723364872735,0.982,2684.7,2684.5,5.21501]
[1723364873464,0.982,2684.7,2684.5,2.60749]
[1723364876924,0.982,2684.7,2684.3,2.60768]
[1723364877768,4.3197,2684.6,2684.1,14.68177]
[1723364878062,0.982,2684.7,2684.1,14.68177]
[1723364878845,0.982,2684.7,2684.2,19.92]
[1723364879047,0.982,2684.7,2684.2,22.52779]
[1723364879645,3.58937,2684.7,2684.2,19.92]
[1723364879971,4.4325,2684.6,2684.2,19.92]
[1723364880355,0.982,2684.5,2684.2,19.92]
[1723364884762,0.982,2684.5,2684.3,19.92]
[1723364889206,3.58957,2684.5,2684.3,19.92]
[1723364890716,3.58957,2684.5,2684.1,19.92]
[1723364893289,2.60766,2684.4,2684.1,19.92]
[1723364896625,2.60766,2684.4,2683.9,30.26961]
[1723364897125,2.60766,2684.4,2683.9,27.6615]
[1723364899322,0.982,2684.5,2683.9,27.6615]
[1723364899323,0.982,2684.5,2684.0,2.60804]
[1723364899551,3.58959,2684.5,2684.0,2.60804]
[1723364899853,3.58959,2684.5,2683.9,27.6615]
[1723364900434,6.19722,2684.5,2683.9,27.6615]
[1723364900621,2.60777,2684.3,2683.9,27.6615]
[1723364902631,2.60777,2684.3,2683.9,7.7415]
[1723364903239,5.21523,2684.5,2683.9,7.7415]
[1723364903552,5.21522,2684.5,2683.9,7.7415]
[1723364903876,2.60767,2684.4,2683.9,7.7415]
[1723364905052,2.60759,2684.5,2683.9,10.34964]
[1723364906956,5.21522,2684.5,2683.9,7.7415]
[1723364907173,2.60759,2684.5,2683.9,7.7415]
[1723364907387,2.60759,2684.5,2683.9,10.34963]
[1723364907668,2.60759,2684.5,2683.9,3.0]
[1723364907978,4.7201,2684.4,2683.9,3.0]
[1723364909174,2.60778,2684.3,2683.9,3.0]
[1723364910668,2.60778,2684.3,2684.0,4.6901]
[1723364910835,2.60778,2684.3,2683.9,3.0]
[1723364917683,5.21562,2684.3,2683.9,3.0]
[1723364917882,2.60778,2684.3,2683.9,3.0]
[1723364918996,2.60778,2684.3,2683.8,12.0401]
[1723364919573,2.60778,2684.3,2683.9,4.6015]
[1723364920062,2.60778,2684.3,2683.8,7.35]
[1723364920386,5.2156,2684.3,2683.7,27.12978]
[1723364920588,2.60778,2684.3,2683.8,3.0]
[1723364924402,5.6673,2684.2,2683.8,3.0]
[1723364924960,2.60795,2684.1,2683.8,3.0]
[1723364926474,2.60795,2684.1,2683.8,22.92]
[1723364927305,5.6673,2684.2,2683.8,22.92]
[1723364927978,8.27518,2684.2,2683.8,22.92]
[1723364931182,2.60795,2684.1,2683.8,22.92]
[1723364931384,3.59006,2684.0,2683.8,19.92]
[1723364931929,0.56673,2684.1,2683.8,19.92]
[1723364932083,4.6853,2684.4,2683.9,2.60807]
[1723364932282,3.58964,2684.5,2683.9,2.60807]
[1723364932527,3.58964,2684.5,2683.8,24.2561]
[1723364932528,2.60766,2684.4,2683.8,24.2561]
[1723364933088,2.60766,2684.4,2683.8,26.86433]
[1723364934481,8.27505,2684.3,2683.8,19.92]
[1723364935288,8.27505,2684.3,2683.7,22.52833]
[1723364935489,2.60787,2684.2,2683.7,22.52833]
[1723364935718,2.60787,2684.2,2683.7,19.92]
[1723364935926,8.27505,2684.3,2683.7,19.92]
[1723364936136,4.6853,2684.0,2683.7,19.92]
[1723364939573,7.29337,2684.0,2683.7,19.92]
[1723364940823,4.6853,2684.0,2683.7,19.92]
[1723364941016,0.982,2683.9,2683.7,19.92]
[1723364941203,4.6853,2684.0,2683.8,19.92]
[1723364941410,0.982,2683.9,2683.8,19.92]
[1723364941613,7.29335,2684.0,2683.8,19.92]
[1723364941944,4.6853,2684.0,2683.8,19.92]
[1723364945850,3.58995,2684.1,2683.8,19.92]
[1723364947156,3.58995,2684.1,2683.6,19.92]
[1723364947315,4.4441,2684.0,2683.6,19.92]
[1723364949052,3.58995,2684.1,2683.6,19.92]
[1723364953056,3.58995,2684.1,2683.7,19.92]
[1723364959141,3.58995,2684.1,2683.5,7.01942]
[1723364960545,3.58995,2684.1,2683.5,9.62784]
[1723364961156,4.427,2684.0,2683.4,2.60861]
[1723364961362,7.03511,2684.0,2683.4,2.60861]
[1723364961869,3.59003,2684.1,2683.5,2.60851]
[1723364962107,3.59003,2684.1,2683.4,2.60861]
[1723364962108,3.59003,2684.1,2683.6,7.31151]
[1723364962444,2.60854,2683.5,2683.1,2.34086732]
[1723364962640,5.409,2683.3,2682.7,4.7031]
[1723364962839,0.982,2682.8,2682.6,19.92]
[1723364963040,0.982,2682.8,2682.4,9.95952]
[1723364963271,0.982,2682.6,2682.4,9.95952]
[1723364963793,0.982,2682.6,2682.3,19.92]
[1723364964078,0.982,2682.6,2682.0,9.95995]
[1723364964079,0.982,2682.4,2682.1,2.60988]
[1723364964296,0.982,2682.2,2681.9,4.7031]
[1723364964451,2.60951,2682.5,2681.9,7.31318]
[1723364964452,0.982,2682.0,2681.9,7.31318]
[1723364964650,0.982,2682.0,2681.9,4.7031]
[1723364965387,0.982,2682.0,2681.9,7.31318]
[1723364965745,0.982,2682.0,2681.7,2.61022]
[1723364965961,0.982,2682.0,2681.8,2.61018]
[1723364966905,0.982,2682.0,2681.6,2.61034]
[1723364967204,2.60973,2682.3,2681.6,2.61034]
[1723364967205,0.982,2681.7,2681.6,2.61034]
[1723364968707,0.982,2681.7,2681.4,5.22108]
[1723364968862,0.982,2681.7,2681.5,3.0]
[1723364969664,0.982,2681.7,2681.4,2.61054]
[1723364970569,0.982,2681.7,2681.3,22.53066]
[1723364970768,0.982,2681.7,2681.3,2.61066]
[1723364971907,0.982,2681.7,2681.4,2.61056]
[1723364972868,0.982,2681.7,2681.3,2.61065]
[1723364973095,0.982,2681.7,2681.2,2.61073]
[1723364973438,0.982,2681.5,2681.2,2.61073]
[1723364974238,0.982,2681.5,2681.0,2.61093]
[1723364975147,0.982,2681.3,2680.9,2.61105]
[1723364976198,0.982,2681.3,2680.7,10.35]
[1723364976403,0.982,2681.1,2680.8,5.61114]
[1723364976602,0.982,2681.1,2680.8,2.61114]
[1723364977630,0.982,2681.1,2680.7,2.61125]
[1723364978741,0.982,2681.1,2680.8,2.61115]
[1723364979201,0.982,2681.1,2680.6,2.61128]
[1723364979406,4.5385,2681.0,2680.6,2.61128]
[1723364979606,0.982,2680.9,2680.4,3.0]
[1723364979817,0.982,2680.9,2680.5,2.61143]
[1723364980242,0.982,2680.7,2680.5,2.61143]
[1723364982559,0.982,2680.7,2680.3,2.61155]
[1723364982731,0.982,2680.5,2680.3,2.61155]
[1723364984562,0.982,2680.5,2680.2,2.61174]
[1723364984985,0.982,2680.5,2680.1,25.53181]
[1723364985175,0.982,2680.5,2680.2,3.0]
[1723364985487,5.4377,2680.5,2680.1,2.61181]
[1723364985876,5.4377,2680.5,2679.9,5.22396]
[1723364986048,0.982,2680.3,2680.0,3.0]
[1723364986250,0.982,2680.3,2680.0,5.61193]
[1723364986760,0.982,2680.3,2680.1,2.61183]
[1723364987160,4.90760035,2687.9,2680.4,2.61146]
[1723364987161,2.61101,2681.0,2680.4,2.61146]
[1723364987360,0.982,2680.8,2680.4,2.61146]
[1723364987561,5.4377,2680.8,2680.4,2.61146]
[1723364989082,0.982,2680.6,2680.2,2.61171]
[1723364989284,0.982,2680.4,2680.2,2.61171]
[1723364990163,0.982,2680.4,2680.0,5.22379]
[1723364990368,0.982,2680.4,2680.0,2.61188]
[1723364990769,0.982,2680.4,2680.0,2.61187]
[1723364992192,0.982,2680.2,2679.8,2.6121]
[1723364992397,0.982,2680.2,2679.8,2.61206]
[1723364993277,0.982,2680.2,2679.9,2.61202]
[1723364993675,0.982,2680.2,2679.8,2.61206]
[1723364994077,4.4557,2680.3,2680.0,2.61189]
[1723364994269,2.61131,2680.7,2680.0,2.61189]
[1723364994270,0.982,2680.4,2680.0,2.61189]
[1723364994607,0.982,2680.4,2680.0,5.22375]
[1723364994770,4.4557,2680.3,2680.0,2.61186]
[1723364995876,0.982,2680.2,2680.0,2.61186]
[1723364998477,0.982,2680.2,2680.1,2.61184]
[1723364998800,4.4557,2680.3,2680.1,2.61184]
[1723364999111,4.4557,2680.3,2680.0,5.22373]
[1723364999671,4.4557,2680.3,2680.0,2.61186]
[1723365000637,3.0,2681.0,2680.0,2.61186]
[1723365000638,4.5242,2680.6,2680.0,0.261186]
[1723365000798,4.5242,2680.6,2679.8,4.3964]
[1723365000799,5.5062,2680.6,2680.3,2.61158]
[1723365001633,5.5062,2680.6,2680.4,2.61153]
[1723365001834,4.5242,2680.6,2680.5,2.61145]
[1723365002135,0.982,2681.2,2680.8,2.61109]
[1723365002289,4.5242,2681.3,2680.6,2.61132]
[1723365002290,0.982,2681.0,2680.6,2.61132]
[1723365002489,2.61077,2681.2,2680.7,2.61123]
[1723365002708,0.982,2681.0,2680.6,2.61132]
[1723365003325,0.982,2681.0,2680.6,2.61129]
[1723365003827,0.982,2681.0,2680.8,2.61113]
[1723365004007,0.982,2681.0,2680.6,2.61127]
[1723365004196,0.982,2681.0,2680.7,2.61118]
[1723365004394,0.982,2681.0,2680.8,5.22224]
[1723365004619,4.4221,2681.6,2681.3,2.61067]
[1723365004919,4.4221,2681.6,2681.1,2.61084]
[1723365004920,0.982,2681.4,2681.1,2.61084]
[1723365005491,0.982,2681.4,2681.3,2.61067]
[1723365005924,0.982,2681.4,2681.1,2.61079]
[1723365006418,5.4041,2681.2,2680.9,2.61106]
[1723365006583,0.982,2681.0,2680.9,2.61106]
[1723365007088,5.4041,2681.2,2680.9,2.61106]
[1723365007690,0.982,2681.2,2680.9,2.61098]
[1723365007925,0.982,2681.4,2681.1,2.61086]
[1723365008285,0.982,2681.4,2681.1,2.61079]
[1723365008512,0.982,2681.4,2681.0,2.61091]
[1723365008792,0.982,2681.4,2681.1,2.6108]
[1723365009188,0.982,2681.4,2681.2,2.61076]
[1723365010189,0.982,2681.4,2681.3,2.61067]
[1723365011701,0.982,2681.4,2681.1,2.61078]
[1723365012112,0.982,2681.4,2681.2,2.61075]
[1723365012431,0.982,2681.6,2681.2,2.61075]
[1723365012793,7.03212,2682.0,2681.2,2.61075]
[1723365012794,4.4221,2682.0,2681.5,2.61047]
[1723365013096,0.982,2681.6,2681.5,2.61041]
[1723365014544,0.982,2681.6,2681.4,2.61057]
[1723365014695,0.982,2681.6,2681.5,2.61047]
[1723365015944,0.982,2681.6,2681.4,2.61057]
[1723365016252,0.982,2681.6,2681.4,5.22105]
[1723365016659,0.982,2681.6,2681.4,2.61048]
[1723365020431,0.982,2681.6,2681.4,5.22099]
[1723365020631,0.982,2681.8,2681.4,2.61048]
[1723365021056,0.982,2681.6,2681.4,2.61048]
[1723365022154,5.5317,2681.6,2681.4,2.61048]
[1723365024242,0.982,2681.6,2681.4,2.61048]
[1723365024467,0.982,2681.6,2681.2,22.53072]
[1723365024858,0.982,2681.6,2681.2,19.92]
[1723365024859,0.982,2681.4,2681.2,19.92]
[1723365025057,0.982,2681.4,2681.1,19.92]
[1723365025475,7.18656,2681.8,2681.1,19.92]
[1723365025680,0.982,2681.6,2681.2,2.61075]
[1723365025882,0.982,2681.6,2681.2,2.6107]
[1723365026178,4.5763,2681.8,2681.3,2.61064]
[1723365026378,0.982,2681.6,2681.3,2.61064]
[1723365026673,0.982,2681.6,2681.1,19.92]
[1723365026674,4.5763,2681.5,2681.1,19.92]
[1723365026841,0.982,2681.4,2681.1,19.92]
[1723365030382,0.982,2681.4,2681.2,19.92]
[1723365036332,0.982,2681.4,2681.0,2.6109]
[1723365036537,0.982,2681.4,2681.2,2.61071]
[1723365036827,0.982,2681.4,2681.2,9.73722]
[1723365037043,0.982,2681.6,2681.2,9.73722]
[1723365037240,4.87064967,2683.4,2681.2,9.73722]
[1723365037241,4.5763,2682.2,2681.8,2.61014]
[1723365037445,0.982,2682.0,2681.8,2.61014]
[1723365037600,4.5763,2682.2,2682.0,2.60993]
[1723365037601,0.982,2682.2,2682.0,2.60993]
[1723365038024,0.982,2682.2,2682.1,5.21978]
[1723365038231,2.60914,2682.9,2682.1,2.60989]
[1723365038232,0.982,2682.4,2682.1,2.60989]
[1723365038550,0.982,2682.4,2682.3,2.6097]
[1723365040445,4.7294,2683.0,2682.2,19.92]
[1723365040599,0.982,2682.8,2682.7,2.60931]
[1723365040805,0.982,2682.8,2682.6,2.60936]
[1723365041317,0.982,2682.8,2682.7,2.60931]
[1723365041641,0.982,2682.8,2682.5,2.6094]
[1723365041826,4.7294,2683.0,2682.4,2.60955]
[1723365042032,0.982,2682.7,2682.4,2.60955]
[1723365043720,0.982,2682.7,2682.5,2.60949]
[1723365043913,0.982,2682.7,2682.6,2.6094]
[1723365045103,0.982,2682.7,2682.4,2.60952]
[1723365046709,0.982,2682.7,2682.2,19.92]